Department Family,Entity,Date,Expense Type,Expense Area,Supplier,SME,Transaction Number,Amount,Description,Expenditure Type
Land Registry,Land Registry,14/08/2014,IS Service Delivery,Computer Equipment Maintenance,ANS Group Plc,Large,1025522,"24,000.00",Computer Equipment Maintenance,Administration
Land Registry,Land Registry,21/08/2014,IS Service Delivery,Telecoms Equipment Maintenance,Azzurri Communications Ltd,SME,1026264,"182,427.50",Telecoms Equipment Maintenance,Administration
Land Registry,Land Registry,11/08/2014,Birkenhead Office,Stationery National Contracts,Banner Business Services Ltd,Large,1024937,"1,457.90",Stationery,Administration
Land Registry,Land Registry,11/08/2014,Central Facilities Management Team,Stationery National Contracts,Banner Business Services Ltd,Large,1024937,705.16,Stationery,Administration
Land Registry,Land Registry,11/08/2014,Chief Executives Office,Stationery National Contracts,Banner Business Services Ltd,Large,1024937,134.6,Stationery,Administration
Land Registry,Land Registry,11/08/2014,Corp Procurement,Stationery National Contracts,Banner Business Services Ltd,Large,1024937,15.45,Stationery,Administration
Land Registry,Land Registry,11/08/2014,Coventry Office,Stationery National Contracts,Banner Business Services Ltd,Large,1024937,"7,777.21",Stationery,Administration
Land Registry,Land Registry,11/08/2014,Croydon Office,Stationery National Contracts,Banner Business Services Ltd,Large,1024937,"1,804.47",Stationery,Administration
Land Registry,Land Registry,11/08/2014,Durham Office,Stationery National Contracts,Banner Business Services Ltd,Large,1024937,"3,422.18",Stationery,Administration
Land Registry,Land Registry,11/08/2014,Finance Group,Stationery National Contracts,Banner Business Services Ltd,Large,1024937,100.74,Stationery,Administration
Land Registry,Land Registry,11/08/2014,Fylde Office,Stationery National Contracts,Banner Business Services Ltd,Large,1024937,"1,249.69",Stationery,Administration
Land Registry,Land Registry,11/08/2014,Gloucester Office,Stationery National Contracts,Banner Business Services Ltd,Large,1024937,"2,826.33",Stationery,Administration
Land Registry,Land Registry,11/08/2014,Governance & Policy,Stationery National Contracts,Banner Business Services Ltd,Large,1024937,50.83,Stationery,Administration
Land Registry,Land Registry,11/08/2014,HR,Stationery National Contracts,Banner Business Services Ltd,Large,1024937,109.06,Stationery,Administration
Land Registry,Land Registry,11/08/2014,Hull Office,Stationery National Contracts,Banner Business Services Ltd,Large,1024937,"3,896.40",Stationery,Administration
Land Registry,Land Registry,11/08/2014,Internal Solutions Group,Stationery National Contracts,Banner Business Services Ltd,Large,1024937,266.08,Stationery,Administration
Land Registry,Land Registry,11/08/2014,IS Service Delivery,Stationery National Contracts,Banner Business Services Ltd,Large,1024937,"2,873.08",Stationery,Administration
Land Registry,Land Registry,11/08/2014,Land Charges,Stationery National Contracts,Banner Business Services Ltd,Large,1024937,414.28,Stationery,Administration
Land Registry,Land Registry,11/08/2014,Leicester Office,Stationery National Contracts,Banner Business Services Ltd,Large,1024937,"1,761.50",Stationery,Administration
Land Registry,Land Registry,11/08/2014,LR Connect Portfolio,Stationery National Contracts,Banner Business Services Ltd,Large,1024937,81.38,Stationery,Administration
Land Registry,Land Registry,11/08/2014,Marketing Services Team,Stationery National Contracts,Banner Business Services Ltd,Large,1024937,53.72,Stationery,Administration
Land Registry,Land Registry,11/08/2014,Nottingham Office,Stationery National Contracts,Banner Business Services Ltd,Large,1024937,"3,684.07",Stationery,Administration
Land Registry,Land Registry,11/08/2014,Peterborough Office,Stationery National Contracts,Banner Business Services Ltd,Large,1024937,"1,820.49",Stationery,Administration
Land Registry,Land Registry,11/08/2014,Plymouth Office,Stationery National Contracts,Banner Business Services Ltd,Large,1024937,"1,712.28",Stationery,Administration
Land Registry,Land Registry,11/08/2014,Research & Data Mining,Stationery National Contracts,Banner Business Services Ltd,Large,1024937,42.69,Stationery,Administration
Land Registry,Land Registry,11/08/2014,Strategy Team,Stationery National Contracts,Banner Business Services Ltd,Large,1024937,648,Stationery,Administration
Land Registry,Land Registry,11/08/2014,Telford Office,Stationery National Contracts,Banner Business Services Ltd,Large,1024937,"1,487.02",Stationery,Administration
Land Registry,Land Registry,11/08/2014,Wales Office,Stationery National Contracts,Banner Business Services Ltd,Large,1024937,"3,550.25",Stationery,Administration
Land Registry,Land Registry,11/08/2014,Weymouth Office,Stationery National Contracts,Banner Business Services Ltd,Large,1024937,"2,022.01",Stationery,Administration
Land Registry,Land Registry,11/08/2014,Central Facilities Management Team,Waste Disposal,Banner Business Services Ltd,Large,1024937,"13,954.55",Waste Disposal,Administration
Land Registry,Land Registry,13/08/2014,Birkenhead Office,Electricity,Carillion Services Ltd,Large,1025325,"4,385.60",Electricity,Administration
Land Registry,Land Registry,13/08/2014,Coventry Office,Electricity,Carillion Services Ltd,Large,1025325,"4,957.30",Electricity,Administration
Land Registry,Land Registry,13/08/2014,Croydon Office,Electricity,Carillion Services Ltd,Large,1025325,"7,008.28",Electricity,Administration
Land Registry,Land Registry,13/08/2014,Dir: HR,Electricity,Carillion Services Ltd,Large,1025325,913.03,Electricity,Administration
Land Registry,Land Registry,13/08/2014,Durham Office,Electricity,Carillion Services Ltd,Large,1025325,"3,897.67",Electricity,Administration
Land Registry,Land Registry,13/08/2014,Fylde Office,Electricity,Carillion Services Ltd,Large,1025325,"3,729.47",Electricity,Administration
Land Registry,Land Registry,13/08/2014,Gloucester Computer Centre,Electricity,Carillion Services Ltd,Large,1025325,"26,440.16",Electricity,Administration
Land Registry,Land Registry,13/08/2014,Gloucester Office,Electricity,Carillion Services Ltd,Large,1025325,"5,095.32",Electricity,Administration
Land Registry,Land Registry,13/08/2014,Governance & Policy,Electricity,Carillion Services Ltd,Large,1025325,"43,859.90",Electricity,Administration
Land Registry,Land Registry,13/08/2014,Hull Office,Electricity,Carillion Services Ltd,Large,1025325,"5,885.41",Electricity,Administration
Land Registry,Land Registry,13/08/2014,Leicester Office,Electricity,Carillion Services Ltd,Large,1025325,"2,702.22",Electricity,Administration
Land Registry,Land Registry,13/08/2014,Nottingham Office,Electricity,Carillion Services Ltd,Large,1025325,"6,370.13",Electricity,Administration
Land Registry,Land Registry,13/08/2014,Telford Office,Electricity,Carillion Services Ltd,Large,1025325,"6,065.20",Electricity,Administration
Land Registry,Land Registry,13/08/2014,Wales Office,Electricity,Carillion Services Ltd,Large,1025325,"4,375.61",Electricity,Administration
Land Registry,Land Registry,13/08/2014,Weymouth Office,Electricity,Carillion Services Ltd,Large,1025325,"3,089.97",Electricity,Administration
Land Registry,Land Registry,13/08/2014,Birkenhead Office,FF&F:Maintenance,Carillion Services Ltd,Large,1025325,183.4,"Furniture, Fixtures & Fittings: Maintenance",Administration
Land Registry,Land Registry,13/08/2014,Coventry Office,FF&F:Maintenance,Carillion Services Ltd,Large,1025325,183.4,"Furniture, Fixtures & Fittings: Maintenance",Administration
Land Registry,Land Registry,13/08/2014,Croydon Office,FF&F:Maintenance,Carillion Services Ltd,Large,1025325,"2,590.90","Furniture, Fixtures & Fittings: Maintenance",Administration
Land Registry,Land Registry,13/08/2014,Durham Office,FF&F:Maintenance,Carillion Services Ltd,Large,1025325,"3,645.03","Furniture, Fixtures & Fittings: Maintenance",Administration
Land Registry,Land Registry,13/08/2014,Fylde Office,FF&F:Maintenance,Carillion Services Ltd,Large,1025325,"1,490.16","Furniture, Fixtures & Fittings: Maintenance",Administration
Land Registry,Land Registry,13/08/2014,Gloucester Computer Centre,FF&F:Maintenance,Carillion Services Ltd,Large,1025325,183.4,"Furniture, Fixtures & Fittings: Maintenance",Administration
Land Registry,Land Registry,13/08/2014,Gloucester Office,FF&F:Maintenance,Carillion Services Ltd,Large,1025325,939.1,"Furniture, Fixtures & Fittings: Maintenance",Administration
Land Registry,Land Registry,13/08/2014,Governance & Policy,FF&F:Maintenance,Carillion Services Ltd,Large,1025325,"1,673.96","Furniture, Fixtures & Fittings: Maintenance",Administration
Land Registry,Land Registry,13/08/2014,Hull Office,FF&F:Maintenance,Carillion Services Ltd,Large,1025325,509.23,"Furniture, Fixtures & Fittings: Maintenance",Administration
Land Registry,Land Registry,13/08/2014,Leicester Office,FF&F:Maintenance,Carillion Services Ltd,Large,1025325,275.1,"Furniture, Fixtures & Fittings: Maintenance",Administration
Land Registry,Land Registry,13/08/2014,Nottingham Office,FF&F:Maintenance,Carillion Services Ltd,Large,1025325,249.56,"Furniture, Fixtures & Fittings: Maintenance",Administration
Land Registry,Land Registry,13/08/2014,Peterborough Office,FF&F:Maintenance,Carillion Services Ltd,Large,1025325,705.37,"Furniture, Fixtures & Fittings: Maintenance",Administration
Land Registry,Land Registry,13/08/2014,RFS15 - Plymouth Drakes Hill Court,FF&F:Maintenance,Carillion Services Ltd,Large,1025325,0.12,"Furniture, Fixtures & Fittings: Maintenance",Administration
Land Registry,Land Registry,13/08/2014,Telford Office,FF&F:Maintenance,Carillion Services Ltd,Large,1025325,191.61,"Furniture, Fixtures & Fittings: Maintenance",Administration
Land Registry,Land Registry,13/08/2014,Wales Office,FF&F:Maintenance,Carillion Services Ltd,Large,1025325,969.46,"Furniture, Fixtures & Fittings: Maintenance",Administration
Land Registry,Land Registry,13/08/2014,Weymouth Office,FF&F:Maintenance,Carillion Services Ltd,Large,1025325,183.4,"Furniture, Fixtures & Fittings: Maintenance",Administration
Land Registry,Land Registry,13/08/2014,Birkenhead Office,FM Ext Helpdesk,Carillion Services Ltd,Large,1025325,395.48,Facilities Helpdesk,Administration
Land Registry,Land Registry,13/08/2014,Coventry Office,FM Ext Helpdesk,Carillion Services Ltd,Large,1025325,802.47,Facilities Helpdesk,Administration
Land Registry,Land Registry,13/08/2014,Croydon Office,FM Ext Helpdesk,Carillion Services Ltd,Large,1025325,476.04,Facilities Helpdesk,Administration
Land Registry,Land Registry,13/08/2014,Durham Office,FM Ext Helpdesk,Carillion Services Ltd,Large,1025325,496.35,Facilities Helpdesk,Administration
Land Registry,Land Registry,13/08/2014,Fylde Office,FM Ext Helpdesk,Carillion Services Ltd,Large,1025325,345.18,Facilities Helpdesk,Administration
Land Registry,Land Registry,13/08/2014,Gloucester Computer Centre,FM Ext Helpdesk,Carillion Services Ltd,Large,1025325,461.19,Facilities Helpdesk,Administration
Land Registry,Land Registry,13/08/2014,Gloucester Office,FM Ext Helpdesk,Carillion Services Ltd,Large,1025325,497.13,Facilities Helpdesk,Administration
Land Registry,Land Registry,13/08/2014,Governance & Policy,FM Ext Helpdesk,Carillion Services Ltd,Large,1025325,"1,379.39",Facilities Helpdesk,Administration
Land Registry,Land Registry,13/08/2014,Hull Office,FM Ext Helpdesk,Carillion Services Ltd,Large,1025325,387.91,Facilities Helpdesk,Administration
Land Registry,Land Registry,13/08/2014,Leicester Office,FM Ext Helpdesk,Carillion Services Ltd,Large,1025325,434.21,Facilities Helpdesk,Administration
Land Registry,Land Registry,13/08/2014,Nottingham Office,FM Ext Helpdesk,Carillion Services Ltd,Large,1025325,"1,533.81",Facilities Helpdesk,Administration
Land Registry,Land Registry,13/08/2014,Peterborough Office,FM Ext Helpdesk,Carillion Services Ltd,Large,1025325,506.6,Facilities Helpdesk,Administration
Land Registry,Land Registry,13/08/2014,RFS1 - Telford,FM Ext Helpdesk,Carillion Services Ltd,Large,1025325,104.54,Facilities Helpdesk,Administration
Land Registry,Land Registry,13/08/2014,RFS15 - Plymouth Drakes Hill Court,FM Ext Helpdesk,Carillion Services Ltd,Large,1025325,0.16,Facilities Helpdesk,Administration
Land Registry,Land Registry,13/08/2014,RFS4 - Coventry,FM Ext Helpdesk,Carillion Services Ltd,Large,1025325,7.13,Facilities Helpdesk,Administration
Land Registry,Land Registry,13/08/2014,Telford Office,FM Ext Helpdesk,Carillion Services Ltd,Large,1025325,419.68,Facilities Helpdesk,Administration
Land Registry,Land Registry,13/08/2014,Wales Office,FM Ext Helpdesk,Carillion Services Ltd,Large,1025325,375.84,Facilities Helpdesk,Administration
Land Registry,Land Registry,13/08/2014,Weymouth Office,FM Ext Helpdesk,Carillion Services Ltd,Large,1025325,305.53,Facilities Helpdesk,Administration
Land Registry,Land Registry,13/08/2014,Birkenhead Office,FM Managed Services,Carillion Services Ltd,Large,1025325,"4,838.65",Facilities Managed Services,Administration
Land Registry,Land Registry,13/08/2014,Coventry Office,FM Managed Services,Carillion Services Ltd,Large,1025325,"9,724.62",Facilities Managed Services,Administration
Land Registry,Land Registry,13/08/2014,Croydon Office,FM Managed Services,Carillion Services Ltd,Large,1025325,"8,133.14",Facilities Managed Services,Administration
Land Registry,Land Registry,13/08/2014,Durham Office,FM Managed Services,Carillion Services Ltd,Large,1025325,"7,718.82",Facilities Managed Services,Administration
Land Registry,Land Registry,13/08/2014,Fylde Office,FM Managed Services,Carillion Services Ltd,Large,1025325,"6,963.53",Facilities Managed Services,Administration
Land Registry,Land Registry,13/08/2014,Gloucester Computer Centre,FM Managed Services,Carillion Services Ltd,Large,1025325,"1,872.97",Facilities Managed Services,Administration
Land Registry,Land Registry,13/08/2014,Gloucester Office,FM Managed Services,Carillion Services Ltd,Large,1025325,"4,208.24",Facilities Managed Services,Administration
Land Registry,Land Registry,13/08/2014,Governance & Policy,FM Managed Services,Carillion Services Ltd,Large,1025325,"11,860.21",Facilities Managed Services,Administration
Land Registry,Land Registry,13/08/2014,Hull Office,FM Managed Services,Carillion Services Ltd,Large,1025325,"4,237.05",Facilities Managed Services,Administration
Land Registry,Land Registry,13/08/2014,Leicester Office,FM Managed Services,Carillion Services Ltd,Large,1025325,"3,754.02",Facilities Managed Services,Administration
Land Registry,Land Registry,13/08/2014,Nottingham Office,FM Managed Services,Carillion Services Ltd,Large,1025325,"13,715.31",Facilities Managed Services,Administration
Land Registry,Land Registry,13/08/2014,Peterborough Office,FM Managed Services,Carillion Services Ltd,Large,1025325,"4,436.54",Facilities Managed Services,Administration
Land Registry,Land Registry,13/08/2014,RFS1 - Telford,FM Managed Services,Carillion Services Ltd,Large,1025325,350.31,Facilities Managed Services,Administration
Land Registry,Land Registry,13/08/2014,RFS15 - Plymouth Drakes Hill Court,FM Managed Services,Carillion Services Ltd,Large,1025325,1.63,Facilities Managed Services,Administration
Land Registry,Land Registry,13/08/2014,RFS4 - Coventry,FM Managed Services,Carillion Services Ltd,Large,1025325,13.74,Facilities Managed Services,Administration
Land Registry,Land Registry,13/08/2014,Telford Office,FM Managed Services,Carillion Services Ltd,Large,1025325,"3,705.36",Facilities Managed Services,Administration
Land Registry,Land Registry,13/08/2014,Wales Office,FM Managed Services,Carillion Services Ltd,Large,1025325,"7,614.05",Facilities Managed Services,Administration
Land Registry,Land Registry,13/08/2014,Weymouth Office,FM Managed Services,Carillion Services Ltd,Large,1025325,"3,973.68",Facilities Managed Services,Administration
Land Registry,Land Registry,13/08/2014,Birkenhead Office,Gas,Carillion Services Ltd,Large,1025325,623.89,Gas,Administration
Land Registry,Land Registry,13/08/2014,Coventry Office,Gas,Carillion Services Ltd,Large,1025325,"1,180.89",Gas,Administration
Land Registry,Land Registry,13/08/2014,Croydon Office,Gas,Carillion Services Ltd,Large,1025325,696.08,Gas,Administration
Land Registry,Land Registry,13/08/2014,Dir: HR,Gas,Carillion Services Ltd,Large,1025325,708.76,Gas,Administration
Land Registry,Land Registry,13/08/2014,Durham Office,Gas,Carillion Services Ltd,Large,1025325,570.57,Gas,Administration
Land Registry,Land Registry,13/08/2014,Fylde Office,Gas,Carillion Services Ltd,Large,1025325,605.64,Gas,Administration
Land Registry,Land Registry,13/08/2014,Gloucester Computer Centre,Gas,Carillion Services Ltd,Large,1025325,80.3,Gas,Administration
Land Registry,Land Registry,13/08/2014,Gloucester Office,Gas,Carillion Services Ltd,Large,1025325,392.59,Gas,Administration
Land Registry,Land Registry,13/08/2014,Governance & Policy,Gas,Carillion Services Ltd,Large,1025325,824.3,Gas,Administration
Land Registry,Land Registry,13/08/2014,Hull Office,Gas,Carillion Services Ltd,Large,1025325,984.37,Gas,Administration
Land Registry,Land Registry,13/08/2014,Leicester Office,Gas,Carillion Services Ltd,Large,1025325,597.61,Gas,Administration
Land Registry,Land Registry,13/08/2014,Nottingham Office,Gas,Carillion Services Ltd,Large,1025325,"1,253.04",Gas,Administration
Land Registry,Land Registry,13/08/2014,Telford Office,Gas,Carillion Services Ltd,Large,1025325,"1,064.51",Gas,Administration
Land Registry,Land Registry,13/08/2014,Wales Office,Gas,Carillion Services Ltd,Large,1025325,434.11,Gas,Administration
Land Registry,Land Registry,13/08/2014,Weymouth Office,Gas,Carillion Services Ltd,Large,1025325,428.49,Gas,Administration
Land Registry,Land Registry,13/08/2014,Birkenhead Office,Grounds Maintenance,Carillion Services Ltd,Large,1025325,693.08,Grounds Maintenance,Administration
Land Registry,Land Registry,13/08/2014,Coventry Office,Grounds Maintenance,Carillion Services Ltd,Large,1025325,"2,845.69",Grounds Maintenance,Administration
Land Registry,Land Registry,13/08/2014,Croydon Office,Grounds Maintenance,Carillion Services Ltd,Large,1025325,81.34,Grounds Maintenance,Administration
Land Registry,Land Registry,13/08/2014,Durham Office,Grounds Maintenance,Carillion Services Ltd,Large,1025325,"13,680.11",Grounds Maintenance,Administration
Land Registry,Land Registry,13/08/2014,Fylde Office,Grounds Maintenance,Carillion Services Ltd,Large,1025325,"1,755.84",Grounds Maintenance,Administration
Land Registry,Land Registry,13/08/2014,Gloucester Computer Centre,Grounds Maintenance,Carillion Services Ltd,Large,1025325,158,Grounds Maintenance,Administration
Land Registry,Land Registry,13/08/2014,Gloucester Office,Grounds Maintenance,Carillion Services Ltd,Large,1025325,675.73,Grounds Maintenance,Administration
Land Registry,Land Registry,13/08/2014,Governance & Policy,Grounds Maintenance,Carillion Services Ltd,Large,1025325,"2,341.24",Grounds Maintenance,Administration
Land Registry,Land Registry,13/08/2014,Hull Office,Grounds Maintenance,Carillion Services Ltd,Large,1025325,"4,301.98",Grounds Maintenance,Administration
Land Registry,Land Registry,13/08/2014,Leicester Office,Grounds Maintenance,Carillion Services Ltd,Large,1025325,772.93,Grounds Maintenance,Administration
Land Registry,Land Registry,13/08/2014,Nottingham Office,Grounds Maintenance,Carillion Services Ltd,Large,1025325,95.09,Grounds Maintenance,Administration
Land Registry,Land Registry,13/08/2014,Telford Office,Grounds Maintenance,Carillion Services Ltd,Large,1025325,"1,248.67",Grounds Maintenance,Administration
Land Registry,Land Registry,13/08/2014,Wales Office,Grounds Maintenance,Carillion Services Ltd,Large,1025325,"1,542.61",Grounds Maintenance,Administration
Land Registry,Land Registry,13/08/2014,Weymouth Office,Grounds Maintenance,Carillion Services Ltd,Large,1025325,781.54,Grounds Maintenance,Administration
Land Registry,Land Registry,13/08/2014,Birkenhead Office,Office Cleaning Expenses,Carillion Services Ltd,Large,1025325,"5,943.43",Office Cleaning Expenses,Administration
Land Registry,Land Registry,13/08/2014,Coventry Office,Office Cleaning Expenses,Carillion Services Ltd,Large,1025325,"7,746.18",Office Cleaning Expenses,Administration
Land Registry,Land Registry,13/08/2014,Croydon Office,Office Cleaning Expenses,Carillion Services Ltd,Large,1025325,"6,208.97",Office Cleaning Expenses,Administration
Land Registry,Land Registry,13/08/2014,Dir: HR,Office Cleaning Expenses,Carillion Services Ltd,Large,1025325,901.35,Office Cleaning Expenses,Administration
Land Registry,Land Registry,13/08/2014,Durham Office,Office Cleaning Expenses,Carillion Services Ltd,Large,1025325,"8,778.46",Office Cleaning Expenses,Administration
Land Registry,Land Registry,13/08/2014,Fylde Office,Office Cleaning Expenses,Carillion Services Ltd,Large,1025325,"5,414.63",Office Cleaning Expenses,Administration
Land Registry,Land Registry,13/08/2014,Gloucester Computer Centre,Office Cleaning Expenses,Carillion Services Ltd,Large,1025325,10.7,Office Cleaning Expenses,Administration
Land Registry,Land Registry,13/08/2014,Gloucester Office,Office Cleaning Expenses,Carillion Services Ltd,Large,1025325,"6,802.15",Office Cleaning Expenses,Administration
Land Registry,Land Registry,13/08/2014,Governance & Policy,Office Cleaning Expenses,Carillion Services Ltd,Large,1025325,"9,669.33",Office Cleaning Expenses,Administration
Land Registry,Land Registry,13/08/2014,Hull Office,Office Cleaning Expenses,Carillion Services Ltd,Large,1025325,"5,329.02",Office Cleaning Expenses,Administration
Land Registry,Land Registry,13/08/2014,Leicester Office,Office Cleaning Expenses,Carillion Services Ltd,Large,1025325,"3,942.21",Office Cleaning Expenses,Administration
Land Registry,Land Registry,13/08/2014,Nottingham Office,Office Cleaning Expenses,Carillion Services Ltd,Large,1025325,"6,957.44",Office Cleaning Expenses,Administration
Land Registry,Land Registry,13/08/2014,Peterborough Office,Office Cleaning Expenses,Carillion Services Ltd,Large,1025325,"3,154.62",Office Cleaning Expenses,Administration
Land Registry,Land Registry,13/08/2014,RFS4 - Coventry,Office Cleaning Expenses,Carillion Services Ltd,Large,1025325,248.93,Office Cleaning Expenses,Administration
Land Registry,Land Registry,13/08/2014,RFS8 - Birkenhead,Office Cleaning Expenses,Carillion Services Ltd,Large,1025325,7.56,Office Cleaning Expenses,Administration
Land Registry,Land Registry,13/08/2014,Telford Office,Office Cleaning Expenses,Carillion Services Ltd,Large,1025325,"6,910.03",Office Cleaning Expenses,Administration
Land Registry,Land Registry,13/08/2014,Wales Office,Office Cleaning Expenses,Carillion Services Ltd,Large,1025325,"4,961.13",Office Cleaning Expenses,Administration
Land Registry,Land Registry,13/08/2014,Weymouth Office,Office Cleaning Expenses,Carillion Services Ltd,Large,1025325,"3,870.91",Office Cleaning Expenses,Administration
Land Registry,Land Registry,13/08/2014,Birkenhead Office,Pest Control,Carillion Services Ltd,Large,1025325,41.96,Pest Control,Administration
Land Registry,Land Registry,13/08/2014,Coventry Office,Pest Control,Carillion Services Ltd,Large,1025325,53.48,Pest Control,Administration
Land Registry,Land Registry,13/08/2014,Croydon Office,Pest Control,Carillion Services Ltd,Large,1025325,40.29,Pest Control,Administration
Land Registry,Land Registry,13/08/2014,Durham Office,Pest Control,Carillion Services Ltd,Large,1025325,49.08,Pest Control,Administration
Land Registry,Land Registry,13/08/2014,Fylde Office,Pest Control,Carillion Services Ltd,Large,1025325,317.87,Pest Control,Administration
Land Registry,Land Registry,13/08/2014,Gloucester Computer Centre,Pest Control,Carillion Services Ltd,Large,1025325,28.68,Pest Control,Administration
Land Registry,Land Registry,13/08/2014,Gloucester Office,Pest Control,Carillion Services Ltd,Large,1025325,46.8,Pest Control,Administration
Land Registry,Land Registry,13/08/2014,Governance & Policy,Pest Control,Carillion Services Ltd,Large,1025325,525.66,Pest Control,Administration
Land Registry,Land Registry,13/08/2014,Hull Office,Pest Control,Carillion Services Ltd,Large,1025325,50.14,Pest Control,Administration
Land Registry,Land Registry,13/08/2014,Leicester Office,Pest Control,Carillion Services Ltd,Large,1025325,55.94,Pest Control,Administration
Land Registry,Land Registry,13/08/2014,Nottingham Office,Pest Control,Carillion Services Ltd,Large,1025325,139.63,Pest Control,Administration
Land Registry,Land Registry,13/08/2014,Peterborough Office,Pest Control,Carillion Services Ltd,Large,1025325,42.52,Pest Control,Administration
Land Registry,Land Registry,13/08/2014,Telford Office,Pest Control,Carillion Services Ltd,Large,1025325,45.04,Pest Control,Administration
Land Registry,Land Registry,13/08/2014,Wales Office,Pest Control,Carillion Services Ltd,Large,1025325,59.46,Pest Control,Administration
Land Registry,Land Registry,13/08/2014,Weymouth Office,Pest Control,Carillion Services Ltd,Large,1025325,41.96,Pest Control,Administration
Land Registry,Land Registry,13/08/2014,Birkenhead Office,Property Maintenance,Carillion Services Ltd,Large,1025325,"5,910.21",Property Maintenance,Administration
Land Registry,Land Registry,13/08/2014,Coventry Office,Property Maintenance,Carillion Services Ltd,Large,1025325,"10,495.26",Property Maintenance,Administration
Land Registry,Land Registry,13/08/2014,Croydon Office,Property Maintenance,Carillion Services Ltd,Large,1025325,"10,888.43",Property Maintenance,Administration
Land Registry,Land Registry,13/08/2014,Dir: HR,Property Maintenance,Carillion Services Ltd,Large,1025325,"2,235.05",Property Maintenance,Administration
Land Registry,Land Registry,13/08/2014,Durham Office,Property Maintenance,Carillion Services Ltd,Large,1025325,"17,629.07",Property Maintenance,Administration
Land Registry,Land Registry,13/08/2014,Fylde Office,Property Maintenance,Carillion Services Ltd,Large,1025325,"17,548.24",Property Maintenance,Administration
Land Registry,Land Registry,13/08/2014,Gloucester Computer Centre,Property Maintenance,Carillion Services Ltd,Large,1025325,"-40,382.94",Property Maintenance,Administration
Land Registry,Land Registry,13/08/2014,Gloucester Office,Property Maintenance,Carillion Services Ltd,Large,1025325,"14,835.46",Property Maintenance,Administration
Land Registry,Land Registry,13/08/2014,Governance & Policy,Property Maintenance,Carillion Services Ltd,Large,1025325,"21,664.37",Property Maintenance,Administration
Land Registry,Land Registry,13/08/2014,Hull Office,Property Maintenance,Carillion Services Ltd,Large,1025325,"19,039.18",Property Maintenance,Administration
Land Registry,Land Registry,13/08/2014,Leicester Office,Property Maintenance,Carillion Services Ltd,Large,1025325,"10,412.32",Property Maintenance,Administration
Land Registry,Land Registry,13/08/2014,Nottingham Office,Property Maintenance,Carillion Services Ltd,Large,1025325,"11,597.78",Property Maintenance,Administration
Land Registry,Land Registry,13/08/2014,Peterborough Office,Property Maintenance,Carillion Services Ltd,Large,1025325,"2,756.58",Property Maintenance,Administration
Land Registry,Land Registry,13/08/2014,RFS1 - Telford,Property Maintenance,Carillion Services Ltd,Large,1025325,"1,706.94",Property Maintenance,Administration
Land Registry,Land Registry,13/08/2014,RFS15 - Plymouth Drakes Hill Court,Property Maintenance,Carillion Services Ltd,Large,1025325,2.37,Property Maintenance,Administration
Land Registry,Land Registry,13/08/2014,RFS4 - Coventry,Property Maintenance,Carillion Services Ltd,Large,1025325,"7,002.78",Property Maintenance,Administration
Land Registry,Land Registry,13/08/2014,RFS5 - Durham Belmont,Property Maintenance,Carillion Services Ltd,Large,1025325,"5,218.15",Property Maintenance,Administration
Land Registry,Land Registry,13/08/2014,Telford Office,Property Maintenance,Carillion Services Ltd,Large,1025325,"16,364.44",Property Maintenance,Administration
Land Registry,Land Registry,13/08/2014,Wales Office,Property Maintenance,Carillion Services Ltd,Large,1025325,"92,707.30",Property Maintenance,Administration
Land Registry,Land Registry,13/08/2014,Weymouth Office,Property Maintenance,Carillion Services Ltd,Large,1025325,"5,075.20",Property Maintenance,Administration
Land Registry,Land Registry,13/08/2014,Dir: HR,Property Management; Other Fees,Carillion Services Ltd,Large,1025325,252.31,Property Management; Other Fees,Administration
Land Registry,Land Registry,13/08/2014,Birkenhead Office,Security Expenses,Carillion Services Ltd,Large,1025325,"3,271.14",Security Expenses,Administration
Land Registry,Land Registry,13/08/2014,Coventry Office,Security Expenses,Carillion Services Ltd,Large,1025325,"8,951.11",Security Expenses,Administration
Land Registry,Land Registry,13/08/2014,Croydon Office,Security Expenses,Carillion Services Ltd,Large,1025325,"10,459.02",Security Expenses,Administration
Land Registry,Land Registry,13/08/2014,Dir: HR,Security Expenses,Carillion Services Ltd,Large,1025325,"1,023.01",Security Expenses,Administration
Land Registry,Land Registry,13/08/2014,Durham Office,Security Expenses,Carillion Services Ltd,Large,1025325,"3,486.36",Security Expenses,Administration
Land Registry,Land Registry,13/08/2014,Fylde Office,Security Expenses,Carillion Services Ltd,Large,1025325,"2,925.89",Security Expenses,Administration
Land Registry,Land Registry,13/08/2014,Gloucester Computer Centre,Security Expenses,Carillion Services Ltd,Large,1025325,"8,318.97",Security Expenses,Administration
Land Registry,Land Registry,13/08/2014,Gloucester Office,Security Expenses,Carillion Services Ltd,Large,1025325,"10,751.57",Security Expenses,Administration
Land Registry,Land Registry,13/08/2014,Governance & Policy,Security Expenses,Carillion Services Ltd,Large,1025325,"22,393.59",Security Expenses,Administration
Land Registry,Land Registry,13/08/2014,Hull Office,Security Expenses,Carillion Services Ltd,Large,1025325,"3,253.48",Security Expenses,Administration
Land Registry,Land Registry,13/08/2014,Leicester Office,Security Expenses,Carillion Services Ltd,Large,1025325,"4,381.85",Security Expenses,Administration
Land Registry,Land Registry,13/08/2014,Nottingham Office,Security Expenses,Carillion Services Ltd,Large,1025325,"3,476.12",Security Expenses,Administration
Land Registry,Land Registry,13/08/2014,Peterborough Office,Security Expenses,Carillion Services Ltd,Large,1025325,402.74,Security Expenses,Administration
Land Registry,Land Registry,13/08/2014,RFS15 - Plymouth Drakes Hill Court,Security Expenses,Carillion Services Ltd,Large,1025325,"2,300.67",Security Expenses,Administration
Land Registry,Land Registry,13/08/2014,Telford Office,Security Expenses,Carillion Services Ltd,Large,1025325,"3,039.56",Security Expenses,Administration
Land Registry,Land Registry,13/08/2014,Wales Office,Security Expenses,Carillion Services Ltd,Large,1025325,"5,573.49",Security Expenses,Administration
Land Registry,Land Registry,13/08/2014,Weymouth Office,Security Expenses,Carillion Services Ltd,Large,1025325,"3,148.19",Security Expenses,Administration
Land Registry,Land Registry,13/08/2014,Birkenhead Office,Vending Machine Consumables & Repairs,Carillion Services Ltd,Large,1025325,767.29,Vending Machine Consumables & Repairs,Administration
Land Registry,Land Registry,13/08/2014,Coventry Office,Vending Machine Consumables & Repairs,Carillion Services Ltd,Large,1025325,223.4,Vending Machine Consumables & Repairs,Administration
Land Registry,Land Registry,13/08/2014,Croydon Office,Vending Machine Consumables & Repairs,Carillion Services Ltd,Large,1025325,190.25,Vending Machine Consumables & Repairs,Administration
Land Registry,Land Registry,13/08/2014,Fylde Office,Vending Machine Consumables & Repairs,Carillion Services Ltd,Large,1025325,220.05,Vending Machine Consumables & Repairs,Administration
Land Registry,Land Registry,13/08/2014,Gloucester Computer Centre,Vending Machine Consumables & Repairs,Carillion Services Ltd,Large,1025325,19.43,Vending Machine Consumables & Repairs,Administration
Land Registry,Land Registry,13/08/2014,Gloucester Office,Vending Machine Consumables & Repairs,Carillion Services Ltd,Large,1025325,734.05,Vending Machine Consumables & Repairs,Administration
Land Registry,Land Registry,13/08/2014,Governance & Policy,Vending Machine Consumables & Repairs,Carillion Services Ltd,Large,1025325,20.95,Vending Machine Consumables & Repairs,Administration
Land Registry,Land Registry,13/08/2014,Hull Office,Vending Machine Consumables & Repairs,Carillion Services Ltd,Large,1025325,364.51,Vending Machine Consumables & Repairs,Administration
Land Registry,Land Registry,13/08/2014,Leicester Office,Vending Machine Consumables & Repairs,Carillion Services Ltd,Large,1025325,158.67,Vending Machine Consumables & Repairs,Administration
Land Registry,Land Registry,13/08/2014,Nottingham Office,Vending Machine Consumables & Repairs,Carillion Services Ltd,Large,1025325,136,Vending Machine Consumables & Repairs,Administration
Land Registry,Land Registry,13/08/2014,Peterborough Office,Vending Machine Consumables & Repairs,Carillion Services Ltd,Large,1025325,148.69,Vending Machine Consumables & Repairs,Administration
Land Registry,Land Registry,13/08/2014,RFS8 - Birkenhead,Vending Machine Consumables & Repairs,Carillion Services Ltd,Large,1025325,54.95,Vending Machine Consumables & Repairs,Administration
Land Registry,Land Registry,13/08/2014,Telford Office,Vending Machine Consumables & Repairs,Carillion Services Ltd,Large,1025325,286.79,Vending Machine Consumables & Repairs,Administration
Land Registry,Land Registry,13/08/2014,Wales Office,Vending Machine Consumables & Repairs,Carillion Services Ltd,Large,1025325,202.56,Vending Machine Consumables & Repairs,Administration
Land Registry,Land Registry,13/08/2014,Weymouth Office,Vending Machine Consumables & Repairs,Carillion Services Ltd,Large,1025325,120.82,Vending Machine Consumables & Repairs,Administration
Land Registry,Land Registry,13/08/2014,Birkenhead Office,Waste Disposal,Carillion Services Ltd,Large,1025325,697.99,Waste Disposal,Administration
Land Registry,Land Registry,13/08/2014,Coventry Office,Waste Disposal,Carillion Services Ltd,Large,1025325,234.75,Waste Disposal,Administration
Land Registry,Land Registry,13/08/2014,Croydon Office,Waste Disposal,Carillion Services Ltd,Large,1025325,343.44,Waste Disposal,Administration
Land Registry,Land Registry,13/08/2014,Dir: HR,Waste Disposal,Carillion Services Ltd,Large,1025325,41.76,Waste Disposal,Administration
Land Registry,Land Registry,13/08/2014,Durham Office,Waste Disposal,Carillion Services Ltd,Large,1025325,"1,170.64",Waste Disposal,Administration
Land Registry,Land Registry,13/08/2014,Fylde Office,Waste Disposal,Carillion Services Ltd,Large,1025325,445.2,Waste Disposal,Administration
Land Registry,Land Registry,13/08/2014,Gloucester Computer Centre,Waste Disposal,Carillion Services Ltd,Large,1025325,328.8,Waste Disposal,Administration
Land Registry,Land Registry,13/08/2014,Gloucester Office,Waste Disposal,Carillion Services Ltd,Large,1025325,518.25,Waste Disposal,Administration
Land Registry,Land Registry,13/08/2014,Governance & Policy,Waste Disposal,Carillion Services Ltd,Large,1025325,"1,997.99",Waste Disposal,Administration
Land Registry,Land Registry,13/08/2014,Hull Office,Waste Disposal,Carillion Services Ltd,Large,1025325,116.05,Waste Disposal,Administration
Land Registry,Land Registry,13/08/2014,Leicester Office,Waste Disposal,Carillion Services Ltd,Large,1025325,223.18,Waste Disposal,Administration
Land Registry,Land Registry,13/08/2014,Nottingham Office,Waste Disposal,Carillion Services Ltd,Large,1025325,365.45,Waste Disposal,Administration
Land Registry,Land Registry,13/08/2014,Peterborough Office,Waste Disposal,Carillion Services Ltd,Large,1025325,-6.03,Waste Disposal,Administration
Land Registry,Land Registry,13/08/2014,RFS1 - Telford,Waste Disposal,Carillion Services Ltd,Large,1025325,-87.56,Waste Disposal,Administration
Land Registry,Land Registry,13/08/2014,RFS15 - Plymouth Drakes Hill Court,Waste Disposal,Carillion Services Ltd,Large,1025325,0.02,Waste Disposal,Administration
Land Registry,Land Registry,13/08/2014,Telford Office,Waste Disposal,Carillion Services Ltd,Large,1025325,933.63,Waste Disposal,Administration
Land Registry,Land Registry,13/08/2014,Wales Office,Waste Disposal,Carillion Services Ltd,Large,1025325,352.78,Waste Disposal,Administration
Land Registry,Land Registry,13/08/2014,Weymouth Office,Waste Disposal,Carillion Services Ltd,Large,1025325,209.1,Waste Disposal,Administration
Land Registry,Land Registry,13/08/2014,Birkenhead Office,Water,Carillion Services Ltd,Large,1025325,"4,737.89",Water,Administration
Land Registry,Land Registry,13/08/2014,Coventry Office,Water,Carillion Services Ltd,Large,1025325,"1,893.51",Water,Administration
Land Registry,Land Registry,13/08/2014,Croydon Office,Water,Carillion Services Ltd,Large,1025325,"-1,866.05",Water,Administration
Land Registry,Land Registry,13/08/2014,Fylde Office,Water,Carillion Services Ltd,Large,1025325,"3,922.69",Water,Administration
Land Registry,Land Registry,13/08/2014,Gloucester Office,Water,Carillion Services Ltd,Large,1025325,935.4,Water,Administration
Land Registry,Land Registry,13/08/2014,Governance & Policy,Water,Carillion Services Ltd,Large,1025325,"14,242.64",Water,Administration
Land Registry,Land Registry,13/08/2014,Hull Office,Water,Carillion Services Ltd,Large,1025325,327.07,Water,Administration
Land Registry,Land Registry,13/08/2014,Telford Office,Water,Carillion Services Ltd,Large,1025325,"1,401.63",Water,Administration
Land Registry,Land Registry,15/08/2014,IS Service Delivery,Computer Equipment Maintenance,CGI IT UK Limited,Large,1025715,"69,500.00",Computer Equipment Maintenance,Administration
Land Registry,Land Registry,29/08/2014,IS Service Delivery,Computer Equipment Hire,CHG-MERIDIAN UK Limited,SME,1027378,"45,820.83",Computer Equipment Hire,Administration
Land Registry,Land Registry,29/08/2014,Finance Group,Finance Charges on Leases,CHG-MERIDIAN UK Limited,SME,1027369,162.26,Finance Charges on Leases,Administration
Land Registry,Land Registry,29/08/2014,Balance Sheet,Finance Lease Obligatns < 1 yr,CHG-MERIDIAN UK Limited,SME,1027369,"45,317.37",Finance Lease,Administration
Land Registry,Land Registry,27/08/2014,Wales Office,Rates Payable,City & County of Swansea,Large,1026930,#REF!,Rates Payable,Administration
Land Registry,Land Registry,27/08/2014,Governance & Policy,Rates Payable,City of Plymouth,Large,1026931,#REF!,Rates Payable,Administration
Land Registry,Land Registry,27/08/2014,Dir: HR,Rates Payable,City of York Council,Large,1026932,#REF!,Rates Payable,Administration
Land Registry,Land Registry,27/08/2014,Coventry Office,Rates Payable,Coventry City Council,Large,1026933,#REF!,Rates Payable,Administration
Land Registry,Land Registry,18/08/2014,Dir: (Statutory) Commercial & Customer,Professional Services,Deloitte MCS Ltd,Large,1025905,"119,916.00",Professional Services,Administration
Land Registry,Land Registry,27/08/2014,Durham Office,Rates Payable,Durham County Council,Large,1026934,#REF!,Rates Payable,Administration
Land Registry,Land Registry,06/08/2014,Central Facilities Management Team,Transport Hire of Cars and Vans,Enterprise Rent-A-Car (UK) Ltd,Large,1024428,"27,921.02",Transport Hire of Cars and Vans,Administration
Land Registry,Land Registry,27/08/2014,Fylde Office,Rates Payable,Fylde Borough Council,Large,1026936,#REF!,Rates Payable,Administration
Land Registry,Land Registry,27/08/2014,Gloucester Office,Rates Payable,Gloucester City Council,Large,1026937,#REF!,Rates Payable,Administration
Land Registry,Land Registry,04/08/2014,IS Service Delivery,Computer Equipment Maintenance,IBM United Kingdom Ltd,Large,1023980,"62,250.00",Computer Equipment Maintenance,Administration
Land Registry,Land Registry,11/08/2014,Hull Office,Rates Payable,Kingston Upon Hull City Council,Large,1024944,#REF!,Rates Payable,Administration
Land Registry,Land Registry,28/08/2014,LR Connect Portfolio,Consultancy Non-IT Advice Only,KPMG LLP,Large,1027118,"589,033.00",Consultancy Non-IT Advice Only,Administration
Land Registry,Land Registry,15/08/2014,IS Service Delivery,Employment Agency Staff Costs,LA International Computer Consultants Ltd,SME,1025719,"53,638.18",Employment Agency Staff Costs,Administration
Land Registry,Land Registry,27/08/2014,Leicester Office,Rates Payable,Leicester City Council,Large,1026941,#REF!,Rates Payable,Administration
Land Registry,Land Registry,27/08/2014,Nottingham Office,Rates Payable,Nottingham City Council,Large,1026943,#REF!,Rates Payable,Administration
Land Registry,Land Registry,13/08/2014,Survey & Mapping Services,Ordnance Survey Surveys,Ordnance Survey,Large,1025328,"731,205.00",Ordnance Survey Surveys,Administration
Land Registry,Land Registry,27/08/2014,Peterborough Office,Rates Payable,Peterborough City Council,Large,1026944,#REF!,Rates Payable,Administration
Land Registry,Land Registry,07/08/2014,Business Continuity,Travel & Subsistence General Duty,Redfern Travel Ltd,Large,1024565,192.24,Travel & Subsistence General Duty,Administration
Land Registry,Land Registry,07/08/2014,Business Development,Travel & Subsistence General Duty,Redfern Travel Ltd,Large,1024565,"1,064.52",Travel & Subsistence General Duty,Administration
Land Registry,Land Registry,07/08/2014,Central Facilities Management Team,Travel & Subsistence General Duty,Redfern Travel Ltd,Large,1024565,188.92,Travel & Subsistence General Duty,Administration
Land Registry,Land Registry,07/08/2014,Central Operations Group,Travel & Subsistence General Duty,Redfern Travel Ltd,Large,1024565,"2,004.95",Travel & Subsistence General Duty,Administration
Land Registry,Land Registry,07/08/2014,Chief Executives Office,Travel & Subsistence General Duty,Redfern Travel Ltd,Large,1024565,626.44,Travel & Subsistence General Duty,Administration
Land Registry,Land Registry,07/08/2014,Commercial & Customer Strategy & Performance,Travel & Subsistence General Duty,Redfern Travel Ltd,Large,1024565,668.47,Travel & Subsistence General Duty,Administration
Land Registry,Land Registry,07/08/2014,Commercial Director,Travel & Subsistence General Duty,Redfern Travel Ltd,Large,1024565,6.95,Travel & Subsistence General Duty,Administration
Land Registry,Land Registry,07/08/2014,Corp Procurement,Travel & Subsistence General Duty,Redfern Travel Ltd,Large,1024565,618.76,Travel & Subsistence General Duty,Administration
Land Registry,Land Registry,07/08/2014,Corporate Legal Services,Travel & Subsistence General Duty,Redfern Travel Ltd,Large,1024565,-81.71,Travel & Subsistence General Duty,Administration
Land Registry,Land Registry,07/08/2014,Customer Services,Travel & Subsistence General Duty,Redfern Travel Ltd,Large,1024565,51.13,Travel & Subsistence General Duty,Administration
Land Registry,Land Registry,07/08/2014,Dir: (Add Value) Commercial & Customer,Travel & Subsistence General Duty,Redfern Travel Ltd,Large,1024565,2.29,Travel & Subsistence General Duty,Administration
Land Registry,Land Registry,07/08/2014,Dir: (Statutory) Commercial & Customer,Travel & Subsistence General Duty,Redfern Travel Ltd,Large,1024565,"5,851.83",Travel & Subsistence General Duty,Administration
Land Registry,Land Registry,07/08/2014,Dir: Information Systems,Travel & Subsistence General Duty,Redfern Travel Ltd,Large,1024565,130.33,Travel & Subsistence General Duty,Administration
Land Registry,Land Registry,07/08/2014,Director of Information Systems,Travel & Subsistence General Duty,Redfern Travel Ltd,Large,1024565,720.08,Travel & Subsistence General Duty,Administration
Land Registry,Land Registry,07/08/2014,Director of Legal Services,Travel & Subsistence General Duty,Redfern Travel Ltd,Large,1024565,162.52,Travel & Subsistence General Duty,Administration
Land Registry,Land Registry,07/08/2014,Durham Office,Travel & Subsistence General Duty,Redfern Travel Ltd,Large,1024565,17.81,Travel & Subsistence General Duty,Administration
Land Registry,Land Registry,07/08/2014,Employee & Management Support Manager,Travel & Subsistence General Duty,Redfern Travel Ltd,Large,1024565,68.51,Travel & Subsistence General Duty,Administration
Land Registry,Land Registry,07/08/2014,Finance Director,Travel & Subsistence General Duty,Redfern Travel Ltd,Large,1024565,711.34,Travel & Subsistence General Duty,Administration
Land Registry,Land Registry,07/08/2014,Finance Group,Travel & Subsistence General Duty,Redfern Travel Ltd,Large,1024565,433.03,Travel & Subsistence General Duty,Administration
Land Registry,Land Registry,07/08/2014,Fylde Office,Travel & Subsistence General Duty,Redfern Travel Ltd,Large,1024565,0.78,Travel & Subsistence General Duty,Administration
Land Registry,Land Registry,07/08/2014,Governance & Policy,Travel & Subsistence General Duty,Redfern Travel Ltd,Large,1024565,99,Travel & Subsistence General Duty,Administration
Land Registry,Land Registry,07/08/2014,Guarantee & Litigation,Travel & Subsistence General Duty,Redfern Travel Ltd,Large,1024565,127.91,Travel & Subsistence General Duty,Administration
Land Registry,Land Registry,07/08/2014,HR,Travel & Subsistence General Duty,Redfern Travel Ltd,Large,1024565,"4,235.32",Travel & Subsistence General Duty,Administration
Land Registry,Land Registry,07/08/2014,Internal Audit,Travel & Subsistence General Duty,Redfern Travel Ltd,Large,1024565,111.01,Travel & Subsistence General Duty,Administration
Land Registry,Land Registry,07/08/2014,International Unit,Travel & Subsistence General Duty,Redfern Travel Ltd,Large,1024565,"1,513.36",Travel & Subsistence General Duty,Administration
Land Registry,Land Registry,07/08/2014,IS Service Delivery,Travel & Subsistence General Duty,Redfern Travel Ltd,Large,1024565,608.21,Travel & Subsistence General Duty,Administration
Land Registry,Land Registry,07/08/2014,Leicester Office,Travel & Subsistence General Duty,Redfern Travel Ltd,Large,1024565,214.18,Travel & Subsistence General Duty,Administration
Land Registry,Land Registry,07/08/2014,Local Lawyer Group,Travel & Subsistence General Duty,Redfern Travel Ltd,Large,1024565,249.39,Travel & Subsistence General Duty,Administration
Land Registry,Land Registry,07/08/2014,LR Connect Portfolio,Travel & Subsistence General Duty,Redfern Travel Ltd,Large,1024565,716.71,Travel & Subsistence General Duty,Administration
Land Registry,Land Registry,07/08/2014,Marketing Services Team,Travel & Subsistence General Duty,Redfern Travel Ltd,Large,1024565,386.16,Travel & Subsistence General Duty,Administration
Land Registry,Land Registry,07/08/2014,Nottingham Office,Travel & Subsistence General Duty,Redfern Travel Ltd,Large,1024565,-108.21,Travel & Subsistence General Duty,Administration
Land Registry,Land Registry,07/08/2014,Peterborough Office,Travel & Subsistence General Duty,Redfern Travel Ltd,Large,1024565,480.26,Travel & Subsistence General Duty,Administration
Land Registry,Land Registry,07/08/2014,Plymouth Office,Travel & Subsistence General Duty,Redfern Travel Ltd,Large,1024565,66.95,Travel & Subsistence General Duty,Administration
Land Registry,Land Registry,07/08/2014,Product Development & Management,Travel & Subsistence General Duty,Redfern Travel Ltd,Large,1024565,"1,030.55",Travel & Subsistence General Duty,Administration
Land Registry,Land Registry,07/08/2014,Prog: Corporate Services,Travel & Subsistence General Duty,Redfern Travel Ltd,Large,1024565,-10.87,Travel & Subsistence General Duty,Administration
Land Registry,Land Registry,07/08/2014,Prog: Digital by Default,Travel & Subsistence General Duty,Redfern Travel Ltd,Large,1024565,"5,185.09",Travel & Subsistence General Duty,Administration
Land Registry,Land Registry,07/08/2014,Prog: e-Enablement,Travel & Subsistence General Duty,Redfern Travel Ltd,Large,1024565,"1,687.90",Travel & Subsistence General Duty,Administration
Land Registry,Land Registry,07/08/2014,Prog: IT Foundations,Travel & Subsistence General Duty,Redfern Travel Ltd,Large,1024565,132.34,Travel & Subsistence General Duty,Administration
Land Registry,Land Registry,07/08/2014,Property Asset Management Group,Travel & Subsistence General Duty,Redfern Travel Ltd,Large,1024565,266.09,Travel & Subsistence General Duty,Administration
Land Registry,Land Registry,07/08/2014,Research & Data Mining,Travel & Subsistence General Duty,Redfern Travel Ltd,Large,1024565,72.99,Travel & Subsistence General Duty,Administration
Land Registry,Land Registry,07/08/2014,Strategy Team,Travel & Subsistence General Duty,Redfern Travel Ltd,Large,1024565,"1,570.91",Travel & Subsistence General Duty,Administration
Land Registry,Land Registry,07/08/2014,Survey & Mapping Services,Travel & Subsistence General Duty,Redfern Travel Ltd,Large,1024565,591.12,Travel & Subsistence General Duty,Administration
Land Registry,Land Registry,07/08/2014,Technical Assurance Group,Travel & Subsistence General Duty,Redfern Travel Ltd,Large,1024565,109.85,Travel & Subsistence General Duty,Administration
Land Registry,Land Registry,07/08/2014,Wales Office,Travel & Subsistence General Duty,Redfern Travel Ltd,Large,1024565,446.21,Travel & Subsistence General Duty,Administration
Land Registry,Land Registry,21/08/2014,Birkenhead Office,Travel & Subsistence General Duty,Redfern Travel Ltd,Large,1026268,151.46,Travel & Subsistence General Duty,Administration
Land Registry,Land Registry,21/08/2014,Business Continuity,Travel & Subsistence General Duty,Redfern Travel Ltd,Large,1026268,219.31,Travel & Subsistence General Duty,Administration
Land Registry,Land Registry,21/08/2014,Business Development,Travel & Subsistence General Duty,Redfern Travel Ltd,Large,1026268,477.02,Travel & Subsistence General Duty,Administration
Land Registry,Land Registry,21/08/2014,Central Facilities Management Team,Travel & Subsistence General Duty,Redfern Travel Ltd,Large,1026268,"2,082.34",Travel & Subsistence General Duty,Administration
Land Registry,Land Registry,21/08/2014,Central Operations Group,Travel & Subsistence General Duty,Redfern Travel Ltd,Large,1026268,"2,438.48",Travel & Subsistence General Duty,Administration
Land Registry,Land Registry,21/08/2014,Chief Executives Office,Travel & Subsistence General Duty,Redfern Travel Ltd,Large,1026268,889.92,Travel & Subsistence General Duty,Administration
Land Registry,Land Registry,21/08/2014,Commercial & Customer Strategy & Performance,Travel & Subsistence General Duty,Redfern Travel Ltd,Large,1026268,118.63,Travel & Subsistence General Duty,Administration
Land Registry,Land Registry,21/08/2014,Commercial Director,Travel & Subsistence General Duty,Redfern Travel Ltd,Large,1026268,99,Travel & Subsistence General Duty,Administration
Land Registry,Land Registry,21/08/2014,Corp Procurement,Travel & Subsistence General Duty,Redfern Travel Ltd,Large,1026268,71.98,Travel & Subsistence General Duty,Administration
Land Registry,Land Registry,21/08/2014,Corporate Legal Services,Travel & Subsistence General Duty,Redfern Travel Ltd,Large,1026268,374.8,Travel & Subsistence General Duty,Administration
Land Registry,Land Registry,21/08/2014,Customer Services,Travel & Subsistence General Duty,Redfern Travel Ltd,Large,1026268,464.73,Travel & Subsistence General Duty,Administration
Land Registry,Land Registry,21/08/2014,Dir: (Statutory) Commercial & Customer,Travel & Subsistence General Duty,Redfern Travel Ltd,Large,1026268,"3,926.25",Travel & Subsistence General Duty,Administration
Land Registry,Land Registry,21/08/2014,Dir: Information Systems,Travel & Subsistence General Duty,Redfern Travel Ltd,Large,1026268,373.68,Travel & Subsistence General Duty,Administration
Land Registry,Land Registry,21/08/2014,Director of Information Systems,Travel & Subsistence General Duty,Redfern Travel Ltd,Large,1026268,"1,452.58",Travel & Subsistence General Duty,Administration
Land Registry,Land Registry,21/08/2014,Director of Legal Services,Travel & Subsistence General Duty,Redfern Travel Ltd,Large,1026268,162.52,Travel & Subsistence General Duty,Administration
Land Registry,Land Registry,21/08/2014,Durham Office,Travel & Subsistence General Duty,Redfern Travel Ltd,Large,1026268,258.6,Travel & Subsistence General Duty,Administration
Land Registry,Land Registry,21/08/2014,Employee & Management Support Manager,Travel & Subsistence General Duty,Redfern Travel Ltd,Large,1026268,256.85,Travel & Subsistence General Duty,Administration
Land Registry,Land Registry,21/08/2014,Finance Director,Travel & Subsistence General Duty,Redfern Travel Ltd,Large,1026268,300.94,Travel & Subsistence General Duty,Administration
Land Registry,Land Registry,21/08/2014,Finance Group,Travel & Subsistence General Duty,Redfern Travel Ltd,Large,1026268,18.5,Travel & Subsistence General Duty,Administration
Land Registry,Land Registry,21/08/2014,Fylde Office,Travel & Subsistence General Duty,Redfern Travel Ltd,Large,1026268,345.12,Travel & Subsistence General Duty,Administration
Land Registry,Land Registry,21/08/2014,Governance & Policy,Travel & Subsistence General Duty,Redfern Travel Ltd,Large,1026268,280.21,Travel & Subsistence General Duty,Administration
Land Registry,Land Registry,21/08/2014,Guarantee & Litigation,Travel & Subsistence General Duty,Redfern Travel Ltd,Large,1026268,122.75,Travel & Subsistence General Duty,Administration
Land Registry,Land Registry,21/08/2014,HR,Travel & Subsistence General Duty,Redfern Travel Ltd,Large,1026268,"2,830.31",Travel & Subsistence General Duty,Administration
Land Registry,Land Registry,21/08/2014,Hull Office,Travel & Subsistence General Duty,Redfern Travel Ltd,Large,1026268,352.19,Travel & Subsistence General Duty,Administration
Land Registry,Land Registry,21/08/2014,Independent Complaints Reviewer,Travel & Subsistence General Duty,Redfern Travel Ltd,Large,1026268,170.79,Travel & Subsistence General Duty,Administration
Land Registry,Land Registry,21/08/2014,Internal Audit,Travel & Subsistence General Duty,Redfern Travel Ltd,Large,1026268,262.21,Travel & Subsistence General Duty,Administration
Land Registry,Land Registry,21/08/2014,Internal Solutions Group,Travel & Subsistence General Duty,Redfern Travel Ltd,Large,1026268,"1,034.14",Travel & Subsistence General Duty,Administration
Land Registry,Land Registry,21/08/2014,International Unit,Travel & Subsistence General Duty,Redfern Travel Ltd,Large,1026268,"2,312.24",Travel & Subsistence General Duty,Administration
Land Registry,Land Registry,21/08/2014,IS Service Delivery,Travel & Subsistence General Duty,Redfern Travel Ltd,Large,1026268,665.51,Travel & Subsistence General Duty,Administration
Land Registry,Land Registry,21/08/2014,Learning and Development,Travel & Subsistence General Duty,Redfern Travel Ltd,Large,1026268,119.98,Travel & Subsistence General Duty,Administration
Land Registry,Land Registry,21/08/2014,Leicester Office,Travel & Subsistence General Duty,Redfern Travel Ltd,Large,1026268,160.49,Travel & Subsistence General Duty,Administration
Land Registry,Land Registry,21/08/2014,Local Lawyer Group,Travel & Subsistence General Duty,Redfern Travel Ltd,Large,1026268,169.34,Travel & Subsistence General Duty,Administration
Land Registry,Land Registry,21/08/2014,LR Board & Board Chair,Travel & Subsistence General Duty,Redfern Travel Ltd,Large,1026268,137.37,Travel & Subsistence General Duty,Administration
Land Registry,Land Registry,21/08/2014,LR Connect Portfolio,Travel & Subsistence General Duty,Redfern Travel Ltd,Large,1026268,855.83,Travel & Subsistence General Duty,Administration
Land Registry,Land Registry,21/08/2014,Marketing Services Team,Travel & Subsistence General Duty,Redfern Travel Ltd,Large,1026268,13.02,Travel & Subsistence General Duty,Administration
Land Registry,Land Registry,21/08/2014,National Lawyer Training,Travel & Subsistence General Duty,Redfern Travel Ltd,Large,1026268,"1,099.59",Travel & Subsistence General Duty,Administration
Land Registry,Land Registry,21/08/2014,Nottingham Office,Travel & Subsistence General Duty,Redfern Travel Ltd,Large,1026268,162.79,Travel & Subsistence General Duty,Administration
Land Registry,Land Registry,21/08/2014,Peterborough Office,Travel & Subsistence General Duty,Redfern Travel Ltd,Large,1026268,158.8,Travel & Subsistence General Duty,Administration
Land Registry,Land Registry,21/08/2014,Plymouth Office,Travel & Subsistence General Duty,Redfern Travel Ltd,Large,1026268,55.57,Travel & Subsistence General Duty,Administration
Land Registry,Land Registry,21/08/2014,Product Development & Management,Travel & Subsistence General Duty,Redfern Travel Ltd,Large,1026268,501.49,Travel & Subsistence General Duty,Administration
Land Registry,Land Registry,21/08/2014,Prog: Digital by Default,Travel & Subsistence General Duty,Redfern Travel Ltd,Large,1026268,"3,369.76",Travel & Subsistence General Duty,Administration
Land Registry,Land Registry,21/08/2014,Prog: e-Enablement,Travel & Subsistence General Duty,Redfern Travel Ltd,Large,1026268,"1,284.08",Travel & Subsistence General Duty,Administration
Land Registry,Land Registry,21/08/2014,Property Asset Management Group,Travel & Subsistence General Duty,Redfern Travel Ltd,Large,1026268,389.66,Travel & Subsistence General Duty,Administration
Land Registry,Land Registry,21/08/2014,Registration Legal Services Group,Travel & Subsistence General Duty,Redfern Travel Ltd,Large,1026268,58.55,Travel & Subsistence General Duty,Administration
Land Registry,Land Registry,21/08/2014,Research & Data Mining,Travel & Subsistence General Duty,Redfern Travel Ltd,Large,1026268,39.5,Travel & Subsistence General Duty,Administration
Land Registry,Land Registry,21/08/2014,Strategy Team,Travel & Subsistence General Duty,Redfern Travel Ltd,Large,1026268,259.2,Travel & Subsistence General Duty,Administration
Land Registry,Land Registry,21/08/2014,Survey & Mapping Services,Travel & Subsistence General Duty,Redfern Travel Ltd,Large,1026268,508.31,Travel & Subsistence General Duty,Administration
Land Registry,Land Registry,21/08/2014,Technical Assurance Group,Travel & Subsistence General Duty,Redfern Travel Ltd,Large,1026268,96.24,Travel & Subsistence General Duty,Administration
Land Registry,Land Registry,21/08/2014,Wales Office,Travel & Subsistence General Duty,Redfern Travel Ltd,Large,1026268,345.15,Travel & Subsistence General Duty,Administration
Land Registry,Land Registry,26/08/2014,Business Continuity,Travel & Subsistence General Duty,Redfern Travel Ltd,Large,1026726,250.04,Travel & Subsistence General Duty,Administration
Land Registry,Land Registry,26/08/2014,Business Development,Travel & Subsistence General Duty,Redfern Travel Ltd,Large,1026726,500.02,Travel & Subsistence General Duty,Administration
Land Registry,Land Registry,26/08/2014,Business Planning Assurance and Risk Management,Travel & Subsistence General Duty,Redfern Travel Ltd,Large,1026726,76.55,Travel & Subsistence General Duty,Administration
Land Registry,Land Registry,26/08/2014,Central Facilities Management Team,Travel & Subsistence General Duty,Redfern Travel Ltd,Large,1026726,358.75,Travel & Subsistence General Duty,Administration
Land Registry,Land Registry,26/08/2014,Central Operations Group,Travel & Subsistence General Duty,Redfern Travel Ltd,Large,1026726,"1,282.56",Travel & Subsistence General Duty,Administration
Land Registry,Land Registry,26/08/2014,Chief Executives Office,Travel & Subsistence General Duty,Redfern Travel Ltd,Large,1026726,941.73,Travel & Subsistence General Duty,Administration
Land Registry,Land Registry,26/08/2014,Commercial & Customer Strategy & Performance,Travel & Subsistence General Duty,Redfern Travel Ltd,Large,1026726,238.43,Travel & Subsistence General Duty,Administration
Land Registry,Land Registry,26/08/2014,Commercial Director,Travel & Subsistence General Duty,Redfern Travel Ltd,Large,1026726,1.56,Travel & Subsistence General Duty,Administration
Land Registry,Land Registry,26/08/2014,Corp Procurement,Travel & Subsistence General Duty,Redfern Travel Ltd,Large,1026726,287.78,Travel & Subsistence General Duty,Administration
Land Registry,Land Registry,26/08/2014,Corporate Legal Services,Travel & Subsistence General Duty,Redfern Travel Ltd,Large,1026726,107.42,Travel & Subsistence General Duty,Administration
Land Registry,Land Registry,26/08/2014,Coventry Office,Travel & Subsistence General Duty,Redfern Travel Ltd,Large,1026726,84.56,Travel & Subsistence General Duty,Administration
Land Registry,Land Registry,26/08/2014,Customer Services,Travel & Subsistence General Duty,Redfern Travel Ltd,Large,1026726,157.85,Travel & Subsistence General Duty,Administration
Land Registry,Land Registry,26/08/2014,Dir: (Statutory) Commercial & Customer,Travel & Subsistence General Duty,Redfern Travel Ltd,Large,1026726,"3,359.05",Travel & Subsistence General Duty,Administration
Land Registry,Land Registry,26/08/2014,Director of Information Systems,Travel & Subsistence General Duty,Redfern Travel Ltd,Large,1026726,818.24,Travel & Subsistence General Duty,Administration
Land Registry,Land Registry,26/08/2014,Director of Legal Services,Travel & Subsistence General Duty,Redfern Travel Ltd,Large,1026726,"1,008.86",Travel & Subsistence General Duty,Administration
Land Registry,Land Registry,26/08/2014,Director of Operations,Travel & Subsistence General Duty,Redfern Travel Ltd,Large,1026726,79.53,Travel & Subsistence General Duty,Administration
Land Registry,Land Registry,26/08/2014,Durham Office,Travel & Subsistence General Duty,Redfern Travel Ltd,Large,1026726,78.8,Travel & Subsistence General Duty,Administration
Land Registry,Land Registry,26/08/2014,Employee & Management Support Manager,Travel & Subsistence General Duty,Redfern Travel Ltd,Large,1026726,392.74,Travel & Subsistence General Duty,Administration
Land Registry,Land Registry,26/08/2014,Governance & Policy,Travel & Subsistence General Duty,Redfern Travel Ltd,Large,1026726,464.51,Travel & Subsistence General Duty,Administration
Land Registry,Land Registry,26/08/2014,Guarantee & Litigation,Travel & Subsistence General Duty,Redfern Travel Ltd,Large,1026726,82.04,Travel & Subsistence General Duty,Administration
Land Registry,Land Registry,26/08/2014,HR,Travel & Subsistence General Duty,Redfern Travel Ltd,Large,1026726,"4,236.79",Travel & Subsistence General Duty,Administration
Land Registry,Land Registry,26/08/2014,Internal Audit,Travel & Subsistence General Duty,Redfern Travel Ltd,Large,1026726,297.3,Travel & Subsistence General Duty,Administration
Land Registry,Land Registry,26/08/2014,Internal Solutions Group,Travel & Subsistence General Duty,Redfern Travel Ltd,Large,1026726,848.97,Travel & Subsistence General Duty,Administration
Land Registry,Land Registry,26/08/2014,International Unit,Travel & Subsistence General Duty,Redfern Travel Ltd,Large,1026726,-746.63,Travel & Subsistence General Duty,Administration
Land Registry,Land Registry,26/08/2014,IS Service Delivery,Travel & Subsistence General Duty,Redfern Travel Ltd,Large,1026726,983.85,Travel & Subsistence General Duty,Administration
Land Registry,Land Registry,26/08/2014,Leicester Office,Travel & Subsistence General Duty,Redfern Travel Ltd,Large,1026726,173.89,Travel & Subsistence General Duty,Administration
Land Registry,Land Registry,26/08/2014,Local Lawyer Group,Travel & Subsistence General Duty,Redfern Travel Ltd,Large,1026726,573.77,Travel & Subsistence General Duty,Administration
Land Registry,Land Registry,26/08/2014,LR Connect Portfolio,Travel & Subsistence General Duty,Redfern Travel Ltd,Large,1026726,"1,516.95",Travel & Subsistence General Duty,Administration
Land Registry,Land Registry,26/08/2014,Marketing Services Team,Travel & Subsistence General Duty,Redfern Travel Ltd,Large,1026726,60.72,Travel & Subsistence General Duty,Administration
Land Registry,Land Registry,26/08/2014,National Lawyer Training,Travel & Subsistence General Duty,Redfern Travel Ltd,Large,1026726,119.48,Travel & Subsistence General Duty,Administration
Land Registry,Land Registry,26/08/2014,Peterborough Office,Travel & Subsistence General Duty,Redfern Travel Ltd,Large,1026726,398.63,Travel & Subsistence General Duty,Administration
Land Registry,Land Registry,26/08/2014,Plymouth Office,Travel & Subsistence General Duty,Redfern Travel Ltd,Large,1026726,-55.57,Travel & Subsistence General Duty,Administration
Land Registry,Land Registry,26/08/2014,Product Development & Management,Travel & Subsistence General Duty,Redfern Travel Ltd,Large,1026726,544.98,Travel & Subsistence General Duty,Administration
Land Registry,Land Registry,26/08/2014,Professional Library,Travel & Subsistence General Duty,Redfern Travel Ltd,Large,1026726,47.28,Travel & Subsistence General Duty,Administration
Land Registry,Land Registry,26/08/2014,Prog: Digital by Default,Travel & Subsistence General Duty,Redfern Travel Ltd,Large,1026726,"3,539.27",Travel & Subsistence General Duty,Administration
Land Registry,Land Registry,26/08/2014,Prog: e-Enablement,Travel & Subsistence General Duty,Redfern Travel Ltd,Large,1026726,580.84,Travel & Subsistence General Duty,Administration
Land Registry,Land Registry,26/08/2014,Property Asset Management Group,Travel & Subsistence General Duty,Redfern Travel Ltd,Large,1026726,413.28,Travel & Subsistence General Duty,Administration
Land Registry,Land Registry,26/08/2014,Research & Data Mining,Travel & Subsistence General Duty,Redfern Travel Ltd,Large,1026726,283.24,Travel & Subsistence General Duty,Administration
Land Registry,Land Registry,26/08/2014,Strategy Team,Travel & Subsistence General Duty,Redfern Travel Ltd,Large,1026726,"1,045.31",Travel & Subsistence General Duty,Administration
Land Registry,Land Registry,26/08/2014,Survey & Mapping Services,Travel & Subsistence General Duty,Redfern Travel Ltd,Large,1026726,112.22,Travel & Subsistence General Duty,Administration
Land Registry,Land Registry,26/08/2014,Technical Assurance Group,Travel & Subsistence General Duty,Redfern Travel Ltd,Large,1026726,29.7,Travel & Subsistence General Duty,Administration
Land Registry,Land Registry,20/08/2014,Birkenhead Office,Letter Post,Royal Mail,Large,1026226,"3,080.02",Letter Post,Administration
Land Registry,Land Registry,20/08/2014,Coventry Office,Letter Post,Royal Mail,Large,1026226,"8,283.01",Letter Post,Administration
Land Registry,Land Registry,20/08/2014,Croydon Office,Letter Post,Royal Mail,Large,1026226,"5,610.70",Letter Post,Administration
Land Registry,Land Registry,20/08/2014,Durham Office,Letter Post,Royal Mail,Large,1026226,"6,536.06",Letter Post,Administration
Land Registry,Land Registry,20/08/2014,Fylde Office,Letter Post,Royal Mail,Large,1026226,"4,007.00",Letter Post,Administration
Land Registry,Land Registry,20/08/2014,Gloucester Office,Letter Post,Royal Mail,Large,1026226,"2,575.15",Letter Post,Administration
Land Registry,Land Registry,20/08/2014,Hull Office,Letter Post,Royal Mail,Large,1026226,"2,796.60",Letter Post,Administration
Land Registry,Land Registry,20/08/2014,IS Service Delivery,Letter Post,Royal Mail,Large,1026226,"16,377.99",Letter Post,Administration
Land Registry,Land Registry,20/08/2014,Land Charges,Letter Post,Royal Mail,Large,1026226,946.78,Letter Post,Administration
Land Registry,Land Registry,20/08/2014,Leicester Office,Letter Post,Royal Mail,Large,1026226,"2,459.71",Letter Post,Administration
Land Registry,Land Registry,20/08/2014,Nottingham Office,Letter Post,Royal Mail,Large,1026226,"3,622.85",Letter Post,Administration
Land Registry,Land Registry,20/08/2014,Peterborough Office,Letter Post,Royal Mail,Large,1026226,"1,981.67",Letter Post,Administration
Land Registry,Land Registry,20/08/2014,Plymouth Office,Letter Post,Royal Mail,Large,1026226,"2,840.35",Letter Post,Administration
Land Registry,Land Registry,20/08/2014,Telford Office,Letter Post,Royal Mail,Large,1026226,"2,552.87",Letter Post,Administration
Land Registry,Land Registry,20/08/2014,Wales Office,Letter Post,Royal Mail,Large,1026226,"13,023.49",Letter Post,Administration
Land Registry,Land Registry,20/08/2014,Weymouth Office,Letter Post,Royal Mail,Large,1026226,"2,407.35",Letter Post,Administration
Land Registry,Land Registry,20/08/2014,Peterborough Office,Parcel and Datapost,Royal Mail,Large,1026226,3.79,Parcel and Datapost,Administration
Land Registry,Land Registry,28/08/2014,LR Connect Portfolio,Consultancy Non-IT Advice Only,Slaughter and May,Large,1027130,"306,149.00",Consultancy Non-IT Advice Only,Administration
Land Registry,Land Registry,27/08/2014,Governance & Policy,Rates Payable,South Hams District Council,Large,1026947,#REF!,Rates Payable,Administration
Land Registry,Land Registry,05/08/2014,IS Service Delivery,DITI Managed Service,Steria Limited,Large,1024261,"668,002.48",IT Managed Service,Administration
Land Registry,Land Registry,07/08/2014,IS Service Delivery,DITI Printer Managed Service,Steria Limited,Large,1024568,"160,516.98",IT Printer Managed Service,Administration
Land Registry,Land Registry,07/08/2014,Nottingham Office,DITI Printer Managed Service,Steria Limited,Large,1024568,"1,197.87",IT Printer Managed Service,Administration
Land Registry,Land Registry,07/08/2014,Dir: Information Systems,Professional Services,Steria Limited,Large,1024568,"25,745.49",Professional Services,Administration
Land Registry,Land Registry,07/08/2014,Birkenhead Office,Reprographic Copy Costs,Steria Limited,Large,1024568,289.99,Reprographic Copy Costs,Administration
Land Registry,Land Registry,07/08/2014,Coventry Office,Reprographic Copy Costs,Steria Limited,Large,1024568,399.55,Reprographic Copy Costs,Administration
Land Registry,Land Registry,07/08/2014,Croydon Office,Reprographic Copy Costs,Steria Limited,Large,1024568,113.03,Reprographic Copy Costs,Administration
Land Registry,Land Registry,07/08/2014,Durham Office,Reprographic Copy Costs,Steria Limited,Large,1024568,402.84,Reprographic Copy Costs,Administration
Land Registry,Land Registry,07/08/2014,Fylde Office,Reprographic Copy Costs,Steria Limited,Large,1024568,310.86,Reprographic Copy Costs,Administration
Land Registry,Land Registry,07/08/2014,Gloucester Office,Reprographic Copy Costs,Steria Limited,Large,1024568,421.14,Reprographic Copy Costs,Administration
Land Registry,Land Registry,07/08/2014,Hull Office,Reprographic Copy Costs,Steria Limited,Large,1024568,342.12,Reprographic Copy Costs,Administration
Land Registry,Land Registry,07/08/2014,IS Service Delivery,Reprographic Copy Costs,Steria Limited,Large,1024568,272.13,Reprographic Copy Costs,Administration
Land Registry,Land Registry,07/08/2014,Leicester Office,Reprographic Copy Costs,Steria Limited,Large,1024568,184.73,Reprographic Copy Costs,Administration
Land Registry,Land Registry,07/08/2014,Nottingham Office,Reprographic Copy Costs,Steria Limited,Large,1024568,312.55,Reprographic Copy Costs,Administration
Land Registry,Land Registry,07/08/2014,Peterborough Office,Reprographic Copy Costs,Steria Limited,Large,1024568,190.94,Reprographic Copy Costs,Administration
Land Registry,Land Registry,07/08/2014,Plymouth Office,Reprographic Copy Costs,Steria Limited,Large,1024568,413.97,Reprographic Copy Costs,Administration
Land Registry,Land Registry,07/08/2014,Telford Office,Reprographic Copy Costs,Steria Limited,Large,1024568,129.04,Reprographic Copy Costs,Administration
Land Registry,Land Registry,07/08/2014,Wales Office,Reprographic Copy Costs,Steria Limited,Large,1024568,377.92,Reprographic Copy Costs,Administration
Land Registry,Land Registry,07/08/2014,Weymouth Office,Reprographic Copy Costs,Steria Limited,Large,1024568,181.84,Reprographic Copy Costs,Administration
Land Registry,Land Registry,27/08/2014,Telford Office,Rates Payable,Telford & Wrekin Council,Large,1026949,#REF!,Rates Payable,Administration
Land Registry,Land Registry,27/08/2014,Gloucester Computer Centre,Rates Payable,Tewkesbury Borough Council,Large,1026950,#REF!,Rates Payable,Administration
Land Registry,Land Registry,08/08/2014,Forward Scanning,Maps & Plans Data Migration,TNT (UK) Ltd,Large,1024813,"218,851.76",Maps & Plans Data Migration,Administration
Land Registry,Land Registry,29/08/2014,Central RFS,RFS Outsourced Services,TNT (UK) Ltd,Large,1027375,"310,954.23",RFS Outsourced Services,Administration
Land Registry,Land Registry,06/08/2014,IS Service Delivery,Data Network Lines,Vtesse Networks Ltd,Large,1024434,"61,250.00",Data Network Lines,Administration
Land Registry,Land Registry,05/08/2014,Weymouth Office,Rates Payable,West Dorset District Council,Large,1024263,#REF!,Rates Payable,Administration
Land Registry,Land Registry,01/08/2014,Birkenhead Office,Rates Payable,Wirral Metrpolitan Borough Council,Large,1023913,#REF!,Rates Payable,Administration
